fUST/lending_fUST_20260209
["ID","MTS","AMOUNT","RATE_DAILY","PERIOD"]
[404865618,1770628248200,-660.35166,0.00039989,120]
[404865619,1770628248209,-660.35166,0.00039989,120]
[404865620,1770628248217,-1404.298154,0.00039989,120]
[404865621,1770628248226,-1404.298154,0.00039989,120]
[404865623,1770628248235,-1404.298154,0.00039989,120]
[404865625,1770628248244,-1404.298154,0.00039989,120]
[404865627,1770628248256,-151.0,0.00039989,120]
[404865629,1770628248265,-151.0,0.00039989,120]
[404865631,1770628248274,-278.984657,0.00039989,120]
[404865633,1770628248283,-2000.0,0.00039989,3]
[404865635,1770628248293,-2000.0,0.00039989,3]
[404865637,1770628248302,-2000.0,0.00039989,3]
[404865639,1770628248311,-2000.0,0.00039989,3]
[404865641,1770628248320,-181.08010149,0.00039989,3]
[404865643,1770628248330,-2000.0,0.00039989,3]
[404865644,1770628248339,-187.78006525,0.00039989,3]
[404865646,1770628248348,-2000.0,0.00039989,3]
[404865648,1770628248357,-194.72792766,0.00039989,3]
[404865651,1770628248367,-2000.0,0.00039989,3]
[404865653,1770628248377,-201.93286099,0.00039989,3]
[404865654,1770628248386,-2000.0,0.00039989,3]
[404865655,1770628248395,-209.40437684,0.00039989,3]
[404865656,1770628248404,-2000.0,0.00039989,3]
[404865657,1770628248413,-217.15233878,0.00039989,3]
[404865658,1770628248422,-259.08762871,0.00039989,3]
[404865660,1770628248431,-2000.0,0.00039989,3]
[404865662,1770628248440,-225.18697532,0.00039989,3]
[404865664,1770628248449,-2000.0,0.00039989,3]
[404865666,1770628248458,-233.51889341,0.00039989,3]
[404865668,1770628248468,-2000.0,0.00039989,3]
[404865669,1770628248476,-242.15909246,0.00039989,3]
[404865670,1770628248485,-2000.0,0.00039989,3]
[404865671,1770628248494,-251.11897888,0.00039989,3]
[404865672,1770628248503,-2000.0,0.00039989,3]
[404865673,1770628248512,-260.4103811,0.00039989,3]
[404865674,1770628248521,-2000.0,0.00039989,3]
[404865675,1770628248530,-2000.0,0.00039989,3]
[404865676,1770628248538,-280.03725112,0.00039989,3]
[404865677,1770628248547,-290.39862941,0.00039989,3]
[404865678,1770628248556,-301.1433787,0.00039989,3]
[404865679,1770628248565,-80499.85128692,0.0003999,2]
[404865680,1770628248574,-194.643197,0.0003999,7]
[404865681,1770628248583,-194.643197,0.0003999,7]
[404865682,1770628248593,-194.643197,0.0003999,7]
[404865683,1770628248601,-194.643197,0.0003999,7]
[404865684,1770628248611,-151.0,0.0003999,120]
[404865685,1770628248620,-546.44698593,0.0003999,3]
[404865686,1770628248630,-185.108146,0.0003999,120]
[404865687,1770628248641,-151.0,0.0003999,120]
[404865688,1770628248661,-499.467917,0.0003999,120]
[404865689,1770628248671,-499.467917,0.0003999,120]
[404865690,1770628248681,-499.467917,0.0003999,120]
[404865691,1770628248693,-499.467917,0.0003999,120]
[404865692,1770628248703,-151.0,0.0003999,15]
[404865693,1770628248712,-151.0,0.0003999,120]
[404865694,1770628248723,-151.0,0.0003999,120]
[404865695,1770628248732,-151.0,0.0003999,120]
[404865696,1770628248741,-151.0,0.0003999,120]
[404865697,1770628248752,-370.913672,0.0003999,60]
[404865698,1770628248763,-370.913672,0.0003999,60]
[404865699,1770628248773,-370.913672,0.0003999,60]
[404865700,1770628248782,-172.20541,0.0003999,120]
[404865701,1770628248792,-370.913672,0.0003999,60]
[404865702,1770628248801,-172.20541,0.0003999,120]
[404865703,1770628248810,-172.20541,0.0003999,120]
[404865704,1770628248821,-172.20541,0.0003999,120]
[404865705,1770628248959,-151.0,0.0003999,120]
[404865706,1770628248968,-406.48524,0.0003999,120]
[404865707,1770628248977,-151.0,0.0003999,120]
[404865708,1770628248987,-406.48524,0.0003999,120]
[404865709,1770628248996,-151.0,0.0003999,120]
[404865710,1770628249006,-406.48524,0.0003999,120]
[404865711,1770628249018,-406.48524,0.0003999,120]
[404865712,1770628249028,-617.16,0.0003999,3]
[404865713,1770628249037,-308.58,0.0003999,3]
[404865714,1770628249047,-151.0,0.0003999,120]
[404865715,1770628249057,-267.642441,0.0003999,120]
[404865716,1770628249067,-267.642441,0.0003999,120]
[404865717,1770628249076,-267.642441,0.0003999,120]
[404865718,1770628249085,-267.642441,0.0003999,120]
[404865719,1770628249094,-226.415859,0.0003999,7]
[404865720,1770628249103,-226.415859,0.0003999,7]
[404865721,1770628249113,-226.415859,0.0003999,7]
[404865722,1770628249122,-226.415859,0.0003999,7]
[404865723,1770628249131,-151.0,0.0003999,120]
[404865724,1770628249139,-151.0,0.0003999,120]
[404865725,1770628249148,-151.0,0.0003999,120]
[404865726,1770628249157,-151.0,0.0003999,120]
[404865727,1770628249167,-151.0,0.0003999,120]
[404865728,1770628249175,-223.41602,0.0003999,120]
[404865729,1770628249185,-151.0,0.0003999,120]
[404865730,1770628249194,-151.0,0.0003999,7]
[404865731,1770628249203,-151.0,0.0003999,120]
[404865732,1770628249212,-208.993971,0.0003999,120]
[404865733,1770628249222,-208.993971,0.0003999,120]
[404865734,1770628249231,-208.993971,0.0003999,120]
[404865735,1770628249240,-151.0,0.0003999,120]
[404865736,1770628249250,-208.993971,0.0003999,120]
[404865737,1770628249263,-660.35166,0.0003999,120]
[404865738,1770628249273,-660.35166,0.0003999,120]
[404865739,1770628249282,-660.35166,0.0003999,120]
[404865740,1770628249291,-660.35166,0.0003999,120]
[404865741,1770628249301,-1404.298154,0.0003999,120]
[404865742,1770628249311,-1404.298154,0.0003999,120]
[404865743,1770628249320,-1404.298154,0.0003999,120]
[404865744,1770628249331,-1404.298154,0.0003999,120]
[404865745,1770628249340,-151.0,0.0003999,120]
[404865746,1770628249349,-151.0,0.0003999,120]
[404865747,1770628249358,-1000.0,0.0003999,30]
[404865748,1770628249367,-1000.0,0.0003999,30]
[404865749,1770628249377,-1000.0,0.0003999,30]
[404865750,1770628249386,-1000.0,0.0003999,30]
[404865751,1770628249395,-1000.0,0.0003999,30]
[404865752,1770628249405,-1000.0,0.0003999,30]
[404865753,1770628249414,-1000.0,0.0003999,30]
[404865754,1770628249424,-1000.0,0.0003999,30]
[404865755,1770628249433,-1000.0,0.0003999,30]
[404865756,1770628249442,-765.291766,0.0003999,30]
[404865757,1770628249451,-346.18369532,0.0003999,2]
[404865758,1770628249462,-496.48279815,0.0003999,2]
[404865759,1770628249471,-893.66903667,0.0003999,2]
[404865760,1770628249480,-5610.0280593,0.00039992,2]
[404865761,1770628249489,-2372.8300964,0.00039992,2]
[404865762,1770628249499,-67933.0185576,0.0004,2]
[404865764,1770628662995,161.0,0.00022,2]
[404865941,1770629440228,-542.59557398,0.00025,2]
[404865943,1770629440238,-150.0,0.00025103,2]
[404865945,1770629440248,-177.0,0.00027103,2]
[404865947,1770629440259,-221.1753407,0.0002769,60]
[404865949,1770629440268,-177.0,0.00029103,2]
[404865951,1770629440278,-964.47704101,0.000299,2]
[404865953,1770629440288,-394.83,0.0002999,10]
[404865955,1770629440297,-329.02,0.0002999,10]
[404865957,1770629440307,-274.19,0.0002999,10]
[404865959,1770629440316,-228.49,0.0002999,10]
[404865961,1770629440325,-300.0,0.00029999,2]
[404865963,1770629440335,-1200.0,0.00029999,2]
[404865965,1770629440344,-300.0,0.00029999,2]
[404865967,1770629440354,-300.0,0.00029999,2]
[404865969,1770629440363,-54451.80481508,0.0003,3]
[404865971,1770629440374,-741.97989042,0.0003,3]
[404865973,1770629440384,-79063.94504574,0.0003,20]
[404865975,1770629440398,-897.73840552,0.0003,20]
[404866545,1770629445982,-45934.99151206,0.0003,20]
[404866547,1770629445992,-144589.21125059,0.0003,2]
[404866913,1770629932245,510.17790155,0.00030136,120]
[404866914,1770630007557,297.14427897,0.00013699,2]
[404866939,1770630632035,-940.06947016,0.00028973,2]
[404866986,1770630638152,-2269.33590024,0.00028973,2]
[404866987,1770630638172,-300.0,0.0002999,2]
[404866988,1770630638191,-228.0,0.0002999,2]
[404866989,1770630638204,-300.0,0.00029991,2]
[404866990,1770630638214,-500.0,0.00029991,2]
[404866991,1770630638223,-230.2883087,0.00029991,2]
[404866992,1770630638233,-500.0,0.00029991,2]
[404866993,1770630638242,-500.0,0.00029991,2]
[404866994,1770630638251,-500.0,0.00029991,2]
[404866995,1770630638261,-500.0,0.00029991,2]
[404866996,1770630638270,-500.0,0.00029991,2]
[404866997,1770630638279,-500.0,0.00029991,2]
[404866998,1770630638288,-500.0,0.00029991,2]
[404866999,1770630638298,-500.0,0.00029991,2]
[404867000,1770630638306,-425.61468574,0.00029991,2]
[404867001,1770630638315,-318.59147672,0.00029991,2]
[404867020,1770630645523,-455.08862534,0.00029991,2]
[404867021,1770630645535,-74.1914254,0.00029991,2]
[404867022,1770630645545,-181.40852328,0.00029991,2]
[404867023,1770630645554,-430.31921193,0.00029991,2]
[404867032,1770630646212,-69.68078807,0.00029991,2]
[404867033,1770630646223,-287.81904833,0.00029991,2]
[404867034,1770630646236,-500.0,0.00029991,2]
[404867035,1770630646245,-500.0,0.00029991,2]
[404867036,1770630646256,-500.0,0.00029991,2]
[404867037,1770630646267,-500.0,0.00029991,2]
[404867038,1770630646277,-500.0,0.00029991,2]
[404867039,1770630646286,-500.0,0.00029991,2]
[404867040,1770630646295,-500.0,0.00029991,2]
[404867041,1770630646307,-326.78444974,0.00029991,2]
[404867043,1770630706518,67477.0,0.0001,2]
[404867044,1770631358273,-150.0,0.00025547,2]
[404867046,1770631561345,5229.0,0.000226,2]
[404867077,1770631832221,-160.0,0.00025205,2]
[404867079,1770631832231,-150.0,0.00025205,2]
[404867081,1770631832240,-4949.67868723,0.00026,2]
[404867083,1770631832250,-150.0,0.00027205,2]
[404867085,1770631832260,-360.63088043,0.00027927,2]
[404867087,1770631832269,-300.0,0.00028156,2]
[404867089,1770631832278,-300.0,0.00028157,2]
[404867091,1770631832287,-4883.04356979,0.00028158,2]
[404867164,1770631838340,-5116.95643021,0.00028158,2]
[404867166,1770631838351,-355.4260006,0.0002817,2]
[404867168,1770631838363,-726.56631311,0.0002817,2]
[404867170,1770631838372,-1500.0,0.00028205,2]
[404867172,1770631838381,-6081.85270171,0.0002827,2]
[404867374,1770631840551,-5320.96573661,0.0002827,2]
[404867524,1770631842004,-2675.73589177,0.0002827,2]
[404867527,1770631842015,-583.97114963,0.0002827,2]
[404867529,1770631842026,-499.39467355,0.0002827,2]
[404867531,1770631842038,-500.0,0.0002827,2]
[404867533,1770631842049,-500.0,0.0002827,2]
[404867535,1770631842060,-500.0,0.0002827,2]
[404867538,1770631842070,-307.79346763,0.0002827,2]
[404867540,1770631842081,-500.0,0.0002827,2]
[404867542,1770631842092,-500.0,0.0002827,2]
[404867544,1770631842103,-328.70240689,0.0002827,2]
[404867546,1770631842114,-500.0,0.0002827,2]
[404867549,1770631842125,-500.0,0.0002827,2]
[404867551,1770631842136,-642.56146858,0.0002827,2]
[404867553,1770631842147,-500.0,0.0002827,2]
[404867555,1770631842158,-500.0,0.0002827,2]
[404867557,1770631842169,-500.0,0.0002827,2]
[404867560,1770631842180,-500.0,0.0002827,2]
[404867562,1770631842191,-500.0,0.0002827,2]
[404867564,1770631842202,-500.0,0.0002827,2]
[404867566,1770631842213,-500.0,0.0002827,2]
[404867568,1770631842225,-500.0,0.0002827,2]
[404867571,1770631842237,-500.0,0.0002827,2]
[404867573,1770631842248,-500.0,0.0002827,2]
[404867575,1770631842259,-500.0,0.0002827,2]
[404867577,1770631842270,-500.0,0.0002827,2]
[404867580,1770631842281,-500.0,0.0002827,2]
[404867596,1770631842291,-500.0,0.0002827,2]
[404867599,1770631842446,-500.0,0.0002827,2]
[404867601,1770631842456,-500.0,0.0002827,2]
[404867603,1770631842465,-503.42396823,0.0002827,2]
[404867605,1770631842473,-500.0,0.0002827,2]
[404867607,1770631842483,-242.367094,0.00028272,2]
[404867609,1770631842491,-953.31839137,0.00029396,2]
[404867611,1770631842500,-2290.880074,0.00029396,2]
[404867613,1770631842509,-1128.06068971,0.00029396,2]
[404867615,1770631842518,-2003.43578492,0.00029396,2]
[404867617,1770631842527,-1588.74495407,0.00029396,2]
[404867619,1770631842535,-2482.41399074,0.00029396,2]
[404867621,1770631842544,-3571.10147051,0.00029396,2]
[404867623,1770631842553,-670.33619362,0.0002997,2]
[404867625,1770631842562,-2877.53549232,0.0002998,2]
[404867627,1770631842571,-500.0,0.0002998,2]
[404867629,1770631842579,-1531.07331,0.00029984,2]
[404867631,1770631842588,-190.41,0.0002999,10]
[404867633,1770631842597,-500.0,0.00029992,30]
[404867635,1770631842606,-500.0,0.00029992,30]
[404867637,1770631842615,-500.0,0.00029999,30]
[404867638,1770631842624,-500.0,0.00029999,30]
[404867640,1770631842633,-24146.36549221,0.0003,2]
[404867642,1770631842642,-323.0,0.0003,2]
[404867645,1770631842653,-314.35,0.00030037,2]
[404867647,1770631842662,-163.3,0.00030037,2]
[404867649,1770631842671,-163.31,0.00030137,2]
[404867651,1770631842680,-152.67862421,0.00030137,10]
[404867653,1770631842689,-500.0,0.00030254,2]
[404867655,1770631842698,-420.0,0.00030405,2]
[404867657,1770631842707,-523.91302111,0.00030528,2]
[404867659,1770631842715,-1081.99231369,0.0003056,2]
[404867661,1770631842724,-158.67,0.00031565,10]
[404867663,1770631842733,-670.33619362,0.00031565,2]
[404867665,1770631842742,-1956.16019359,0.00031575,2]
[404867667,1770631842751,-509.5427,0.00031814,2]
[404867669,1770631842760,-505.731563,0.00031814,2]
[404867670,1770631842769,-385.84,0.00031839,3]
[404867673,1770631842778,-578.8,0.00031839,3]
[404867675,1770631842787,-192.92,0.00032239,3]
[404867677,1770631842797,-5325.6566684,0.00032249,2]
[404867678,1770631842806,-198.54810788,0.00032572,2]
[404867681,1770631842816,-357.38659419,0.00032572,2]
[404867683,1770631842825,-400.0,0.00032832,2]
[404867685,1770631842834,-1081.99231369,0.0003295,2]
[404867687,1770631842843,-456.64895945,0.00032989,30]
[404867689,1770631842852,-1340.67238724,0.0003299,2]
[404867691,1770631842862,-793.39,0.0003299,10]
[404867693,1770631842872,-73824.16209513,0.00033,120]
[404867696,1770631842908,-623.38455915,0.00033,120]
[404867697,1770631842919,-2282.53938953,0.00033,120]
[404867986,1770631846017,-6509.42041685,0.00033,120]
[404867988,1770631846026,-2370.57,0.00033,14]
[404867992,1770631846037,-1041.66666667,0.00033,120]
[404867993,1770631846046,-151.0,0.00033,7]
[404867996,1770631846055,-151.0,0.00033,31]
[404867999,1770631846065,-151.0,0.00033,31]
[404868002,1770631846074,-151.0,0.00033,31]
[404868005,1770631846083,-189.40445758,0.00033153,2]
[404868008,1770631846094,-316.32710542,0.00033153,2]
[404868011,1770631846104,-634.71859129,0.00033196,2]
[404868014,1770631846113,-184.37540106,0.000332,117]
[404868017,1770631846123,-184.37540104,0.000332,117]
[404868020,1770631846132,-771.68,0.00033209,3]
[404868022,1770631846141,-385.84,0.00033609,3]
[404868024,1770631846150,-340.0,0.0003374,3]
[404868026,1770631846159,-1340.67238724,0.0003398,2]
[404868028,1770631846168,-2255.87051121,0.0003399,2]
[404868041,1770631846282,-2111.0003468,0.0003399,2]
[404868057,1770631846442,-11435.37433009,0.0003399,2]
[404868060,1770631846454,-2643.18,0.0003399,2]
[404868062,1770631846465,-10609.8123531,0.0003399,2]
[404870634,1770631903164,163.7939202,0.00030136,120]
[404870638,1770632864047,257.32084596,0.000209,2]
[404870639,1770632885163,2326.2686952,0.000226,2]
[404870640,1770632893840,278.32782479,0.00021,2]
[404870641,1770632904137,14747.08854976,0.0002,2]
[404870642,1770632907173,21443.21873748,0.0002,2]
[404870643,1770632909172,1393.82201545,0.0002061,2]
[404870646,1770632919999,2976.44586907,0.00021,2]
[404870695,1770633037442,-2868.48855631,0.00023024,2]
[404870696,1770633037452,-525.60938824,0.00023224,2]
[404870697,1770633037461,-150.0,0.00023325,2]
[404870698,1770633037470,-542.59557398,0.00025,2]
[404870699,1770633037480,-177.0,0.00025325,2]
[404870700,1770633037489,-1200.0,0.00026846,2]
[404870701,1770633037498,-300.0,0.00026848,2]
[404870704,1770633037508,-300.0,0.00026848,2]
[404870706,1770633037517,-300.0,0.00026848,2]
[404870708,1770633037526,-204.0,0.00027325,2]
[404870709,1770633037535,-244.58186651,0.00027927,2]
[404870711,1770633037544,-677.81,0.00028203,2]
[404870712,1770633037553,-677.81,0.00028203,2]
[404870714,1770633037562,-1795.68411039,0.00028325,2]
[404870716,1770633037571,-320.0,0.0002903,2]
[404870717,1770633037580,-108.87050457,0.00029249,60]
[404870759,1770633040698,-112.30483613,0.00029249,60]
[404870760,1770633040708,-307.03297965,0.00029396,2]
[404870761,1770633040718,-1037.92408647,0.00029899,2]
[404870762,1770633040727,-636.73,0.0002999,10]
[404870763,1770633040736,-530.61,0.0002999,10]
[404870764,1770633040747,-442.18,0.0002999,10]
[404870766,1770633040756,-368.48,0.0002999,10]
[404870768,1770633040765,-408.77980474,0.00029998,2]
[404870770,1770633040774,-500.0,0.00029999,2]
[404870772,1770633040784,-54451.80481508,0.0003,3]
[404870774,1770633040792,-741.97989042,0.0003,3]
[404870776,1770633040801,-79063.94504574,0.0003,20]
[404870778,1770633040811,-314.03678806,0.00030479,2]
[404870781,1770633040820,-500.0,0.00030548,18]
[404870782,1770633040829,-500.0,0.00030548,18]
[404870784,1770633040838,-500.0,0.00030548,18]
[404870785,1770633040847,-500.0,0.00030548,18]
[404870786,1770633040975,-500.0,0.00030548,18]
[404870787,1770633040985,-500.0,0.00030548,18]
[404870788,1770633040994,-500.0,0.00030548,18]
[404870789,1770633041003,-621.0,0.00030548,18]
[404870790,1770633041013,-500.0,0.00030548,18]
[404870791,1770633041022,-500.0,0.00030548,18]
[404870792,1770633041031,-500.0,0.00030548,18]
[404870793,1770633041041,-500.0,0.00030548,18]
[404870794,1770633041050,-472.0,0.00030548,18]
[404870795,1770633041059,-500.0,0.00030548,18]
[404870796,1770633041068,-500.0,0.00030548,18]
[404870797,1770633041077,-648.0,0.00030548,18]
[404870798,1770633041087,-741.97989042,0.000309,3]
[404870799,1770633041096,-328.50808051,0.00031182,2]
[404870800,1770633041105,-369.790574,0.00031425,2]
[404870801,1770633041114,-1037.92408643,0.00031828,2]
[404870802,1770633041124,-400.0,0.0003218,3]
[404870803,1770633041133,-1453.4634579,0.00032621,2]
[404870804,1770633041142,-369.790574,0.00032747,2]
[404870805,1770633041152,-11059.9809654,0.00032866,2]
[404870806,1770633041161,-469.23533554,0.00032866,2]
[404870807,1770633041171,-2000.0,0.00032877,2]
[404870808,1770633041181,-2000.0,0.00032877,2]
[404870809,1770633041190,-2000.0,0.00032877,2]
[404870810,1770633041200,-2000.0,0.00032877,2]
[404870811,1770633041210,-2000.0,0.00032877,2]
[404870812,1770633041219,-2000.0,0.00032877,2]
[404870813,1770633041229,-2000.0,0.00032877,2]
[404870814,1770633041238,-2000.0,0.00032877,2]
[404870815,1770633041247,-2000.0,0.00032877,2]
[404870816,1770633041256,-2000.0,0.00032877,2]
[404870817,1770633041266,-2000.0,0.00032877,2]
[404870818,1770633041276,-2000.0,0.00032877,2]
[404870819,1770633041285,-2000.0,0.00032877,2]
[404870820,1770633041294,-2000.0,0.00032877,2]
[404870821,1770633041304,-151.0,0.00032877,31]
[404870822,1770633041313,-151.0,0.00032877,31]
[404870823,1770633041323,-295.0006417,0.000332,117]
[404870824,1770633041332,-500.0,0.00033695,7]
[404870825,1770633041341,-150.0,0.00033695,7]
[404870826,1770633041350,-150.0,0.00033695,7]
[404870827,1770633041359,-150.0,0.00033695,7]
[404870828,1770633041368,-500.0,0.00033695,7]
[404870829,1770633041377,-150.0,0.00033695,2]
[404870830,1770633041386,-500.0,0.00033695,7]
[404870831,1770633041395,-11059.9809654,0.00033705,2]
[404870832,1770633041404,-469.23533554,0.00033705,2]
[404870833,1770633041415,-500.0,0.00033715,7]
[404870834,1770633041424,-500.0,0.00033715,7]
[404870835,1770633041433,-500.0,0.00033715,7]
[404870836,1770633041442,-500.0,0.00033715,7]
[404870837,1770633041451,-500.0,0.00033715,7]
[404870838,1770633041460,-500.0,0.00033715,7]
[404870839,1770633041469,-500.0,0.00033715,7]
[404870840,1770633041478,-500.0,0.00033715,7]
[404870841,1770633041487,-150.0,0.00033715,7]
[404870842,1770633041496,-150.0,0.00033715,7]
[404870843,1770633041506,-500.0,0.00033715,7]
[404870844,1770633041515,-150.0,0.00033715,7]
[404870845,1770633041525,-231.12838518,0.00033715,7]
[404870846,1770633041534,-500.0,0.00033715,7]
[404870847,1770633041543,-500.0,0.00033715,7]
[404870848,1770633041552,-150.0,0.00033715,7]
[404870849,1770633041562,-150.0,0.00033715,7]
[404870850,1770633041571,-205.88747201,0.00033715,7]
[404870851,1770633041580,-151.30899399,0.00033715,7]
[404870852,1770633041589,-150.0,0.00033715,7]
[404870853,1770633041598,-817.0,0.00033715,7]
[404870854,1770633041607,-500.0,0.00033715,7]
[404870855,1770633041616,-171.34391873,0.00033715,7]
[404870856,1770633041625,-500.0,0.00033715,7]
[404870857,1770633041634,-151.0,0.00033715,31]
[404870858,1770633041643,-151.0,0.00033715,31]
[404870859,1770633041652,-500.0,0.0003375,7]
[404870860,1770633041661,-150.0,0.0003375,7]
[404870861,1770633041674,-157.95179778,0.0003375,7]
[404870862,1770633041684,-150.0,0.0003375,7]
[404870863,1770633041693,-500.0,0.0003375,7]
[404870864,1770633041702,-500.0,0.0003375,7]
[404870865,1770633041713,-1037.92408643,0.00033756,2]
[404870866,1770633041722,-500.0,0.0003377,7]
[404870867,1770633041731,-500.0,0.0003377,7]
[404870868,1770633041743,-500.0,0.0003377,7]
[404870869,1770633041751,-500.0,0.0003377,7]
[404870870,1770633041760,-564.57334538,0.0003377,7]
[404870871,1770633041769,-500.0,0.0003377,7]
[404870872,1770633041778,-500.0,0.0003377,7]
[404870873,1770633041787,-500.0,0.0003377,7]
[404870874,1770633041796,-252.47058031,0.0003377,7]
[404870875,1770633041805,-158.87428031,0.0003377,7]
[404870876,1770633041814,-500.0,0.0003377,7]
[404870877,1770633041823,-267.15170082,0.0003377,7]
[404870878,1770633041833,-500.0,0.0003377,7]
[404870879,1770633041842,-500.0,0.0003377,7]
[404870880,1770633041851,-150.0,0.0003377,7]
[404870881,1770633041860,-150.0,0.0003377,7]
[404870882,1770633041869,-150.0,0.0003377,7]
[404870883,1770633041879,-817.0,0.0003377,7]
[404870884,1770633041888,-500.0,0.0003377,7]
[404870885,1770633041897,-500.0,0.0003377,7]
[404870886,1770633041907,-500.0,0.00033805,7]
[404870887,1770633041915,-150.0,0.00033805,7]
[404870888,1770633041924,-151.05620405,0.00033805,7]
[404870889,1770633041934,-500.0,0.00033805,7]
[404870890,1770633041943,-500.0,0.00033805,7]
[404870891,1770633041952,-500.0,0.00033825,7]
[404870892,1770633041961,-500.0,0.00033825,7]
[404870893,1770633041970,-500.0,0.00033825,7]
[404870894,1770633041979,-500.0,0.00033825,7]
[404870895,1770633041988,-500.0,0.00033825,7]
[404870896,1770633041997,-500.0,0.00033825,7]
[404870897,1770633042006,-500.0,0.00033825,7]
[404870898,1770633042015,-182.20820086,0.00033825,7]
[404870899,1770633042024,-474.38416352,0.00033825,7]
[404870900,1770633042034,-500.0,0.00033825,7]
[404870901,1770633042043,-229.50854157,0.00033825,7]
[404870902,1770633042052,-150.0,0.00033825,7]
[404870903,1770633042062,-278.56820168,0.00033825,7]
[404870904,1770633042071,-817.0,0.00033825,7]
[404870905,1770633042081,-500.0,0.00033825,7]
[404870906,1770633042090,-500.0,0.00033825,7]
[404870907,1770633042099,-500.0,0.00033859,7]
[404870908,1770633042108,-150.0,0.00033859,7]
[404870909,1770633042117,-500.0,0.00033859,7]
[404870910,1770633042126,-500.0,0.00033859,7]
[404870911,1770633042135,-151.0,0.00033879,31]
[404870912,1770633042145,-151.0,0.00033879,31]
[404870913,1770633042154,-500.0,0.00033879,7]
[404870914,1770633042163,-500.0,0.00033879,7]
[404870915,1770633042173,-500.0,0.00033879,7]
[404870916,1770633042182,-288.85820594,0.00033879,7]
[404870917,1770633042191,-608.4094022,0.00033879,7]
[404870918,1770633042201,-500.0,0.00033879,7]
[404870919,1770633042210,-500.0,0.00033879,7]
[404870920,1770633042219,-500.0,0.00033879,7]
[404870921,1770633042229,-150.0,0.00033879,7]
[404870922,1770633042238,-817.0,0.00033879,7]
[404870923,1770633042248,-500.0,0.00033879,7]
[404870924,1770633042258,-604.58771276,0.00033879,7]
[404870925,1770633042267,-500.0,0.00033914,7]
[404870926,1770633042276,-161.97244072,0.00033914,7]
[404870927,1770633042285,-228.29240724,0.00033914,7]
[404870928,1770633042294,-426.90584445,0.00033914,7]
[404870929,1770633042304,-500.0,0.00033934,7]
[404870930,1770633042313,-500.0,0.00033934,7]
[404870931,1770633042323,-500.0,0.00033934,7]
[404870932,1770633042332,-500.0,0.00033934,7]
[404870933,1770633042341,-500.0,0.00033934,7]
[404870934,1770633042350,-258.36884435,0.00033934,7]
[404870935,1770633042359,-184.54171238,0.00033934,7]
[404870936,1770633042368,-817.0,0.00033934,7]
[404870937,1770633042377,-500.0,0.00033934,7]
[404870938,1770633042387,-531.42214305,0.00033969,7]
[404870939,1770633042395,-677.81,0.00033979,2]
[404870940,1770633042405,-151.0,0.00033979,7]
[404870941,1770633042414,-11059.9809654,0.00033979,2]
[404870942,1770633042423,-469.23533554,0.00033979,2]
[404870943,1770633042432,-301.73339084,0.00033989,7]
[404870944,1770633042441,-500.0,0.00033989,7]
[404870945,1770633042450,-500.0,0.00033989,7]
[404870946,1770633042459,-500.0,0.00033989,7]
[404870947,1770633042468,-500.0,0.00033989,7]
[404870948,1770633042477,-817.0,0.00033989,7]
[404870949,1770633042486,-500.0,0.00033989,7]
[404870950,1770633042495,-741.97989042,0.00033989,7]
[404870951,1770633042504,-677.81,0.00033989,2]